fUSD/lending_fUSD_20241112
["ID","MTS","AMOUNT","RATE_DAILY","PERIOD"]
[342044661,1731384640264,-151.99652557,0.000148,2]
[342044662,1731384640274,-151.99652557,0.000148,2]
[342044663,1731384640283,-151.99652557,0.000148,2]
[342044664,1731384640293,-151.99652557,0.000148,2]
[342044665,1731384640303,-151.99652557,0.000148,2]
[342044666,1731384640314,-151.99652557,0.000148,2]
[342044667,1731384640323,-151.99652557,0.000148,2]
[342044668,1731384640334,-151.99652557,0.000148,2]
[342044669,1731384640344,-151.99652557,0.000148,2]
[342044670,1731384640353,-151.99652557,0.000148,2]
[342044671,1731384640365,-151.99652557,0.000148,2]
[342044672,1731384640375,-151.99652557,0.000148,2]
[342044673,1731384640385,-151.99652557,0.000148,2]
[342044674,1731384640395,-151.99,0.000148,2]
[342044675,1731384640405,-213.41688112,0.000148,2]
[342044676,1731384640414,-255.27213521,0.000148,2]
[342044677,1731384640423,-255.27213521,0.000148,2]
[342044678,1731384640432,-255.27213521,0.000148,2]
[342044679,1731384640441,-255.27213521,0.000148,2]
[342044680,1731384640450,-255.27213521,0.000148,2]
[342044681,1731384640459,-255.27213521,0.000148,2]
[342044682,1731384640469,-255.27213521,0.000148,2]
[342044683,1731384640479,-255.27213521,0.000148,2]
[342044684,1731384640488,-255.27213521,0.000148,2]
[342044685,1731384640497,-255.27213521,0.000148,2]
[342044686,1731384640506,-24.99626037,0.000148,2]
[342044687,1731384640517,-230.27587484,0.000148,2]
[342044688,1731384640526,-173.832143,0.000148,2]
[342044689,1731384640537,-81.43999221,0.000148,2]
[342044690,1731384640546,-255.27213521,0.000148,2]
[342044691,1731384640555,-255.27213521,0.000148,2]
[342044692,1731384640565,-255.27213521,0.000148,2]
[342044694,1731384640574,-255.27213521,0.000148,2]
[342044695,1731384640583,-255.27213521,0.000148,2]
[342044697,1731384640592,-255.27213521,0.000148,2]
[342044699,1731384640601,-255.27213521,0.000148,2]
[342044701,1731384640611,-44.02102397,0.000148,2]
[342044710,1731384643595,-211.24897603,0.000148,2]
[342044711,1731384643605,-150.0,0.00014807,2]
[342044712,1731384643614,-150.0,0.00014812,2]
[342044713,1731384643623,-150.0,0.00014815,2]
[342044714,1731384643632,-150.0,0.00014818,2]
[342044715,1731384643641,-150.0,0.00014834,2]
[342044716,1731384643651,-1500.0,0.00014835,2]
[342044717,1731384643660,-150.0,0.0001484,2]
[342044718,1731384643672,-150.0,0.0001484,2]
[342044719,1731384643681,-1500.0,0.00014842,2]
[342044720,1731384643690,-150.0,0.00014844,2]
[342044721,1731384643700,-1500.0,0.00014847,2]
[342044722,1731384643708,-150.0,0.00014847,2]
[342044723,1731384643720,-500.0,0.00014848,2]
[342044724,1731384643729,-500.0,0.00014848,2]
[342044725,1731384643738,-500.0,0.00014848,2]
[342044726,1731384643749,-500.0,0.00014848,2]
[342044727,1731384643759,-505.97606375,0.00014848,2]
[342044728,1731384643768,-500.0,0.00014848,2]
[342044729,1731384643778,-500.0,0.00014848,2]
[342044730,1731384643787,-500.0,0.00014848,2]
[342044731,1731384643796,-521.06004553,0.00014848,2]
[342044732,1731384643805,-500.0,0.00014848,2]
[342044733,1731384643814,-500.0,0.00014848,2]
[342044734,1731384643824,-500.0,0.00014848,2]
[342044735,1731384643833,-500.0,0.00014848,2]
[342044736,1731384643844,-258.52916955,0.00014848,2]
[342044737,1731384643857,-1664.85,0.00014848,2]
[342044738,1731384643866,-500.0,0.00014848,2]
[342044739,1731384643876,-3006.97,0.00014848,2]
[342044740,1731384643886,-500.0,0.00014848,2]
[342044741,1731384643895,-544.51060279,0.00014848,2]
[342044742,1731384643904,-500.0,0.00014848,2]
[342044743,1731384643914,-511.47732016,0.00014848,2]
[342044744,1731384643923,-500.0,0.00014848,2]
[342044745,1731384643933,-500.0,0.00014848,2]
[342044746,1731384643942,-500.0,0.00014848,2]
[342044747,1731384643952,-500.0,0.00014848,2]
[342044748,1731384643961,-500.0,0.00014848,2]
[342044749,1731384643972,-510.92371882,0.00014848,2]
[342044750,1731384643981,-500.0,0.00014848,2]
[342044751,1731384643990,-508.42300359,0.00014848,2]
[342044752,1731384644000,-507.36499334,0.00014848,2]
[342044753,1731384644009,-500.0,0.00014848,2]
[342044754,1731384644018,-500.0,0.00014848,2]
[342044755,1731384644027,-500.0,0.00014848,2]
[342044756,1731384644037,-1243.87,0.00014848,2]
[342044757,1731384644046,-1687.75,0.00014848,2]
[342044758,1731384644056,-500.0,0.00014848,2]
[342044759,1731384644065,-500.0,0.00014848,2]
[342044760,1731384644075,-2054.78,0.00014848,2]
[342044761,1731384644084,-500.0,0.00014848,2]
[342044762,1731384644094,-500.67554963,0.00014848,2]
[342044763,1731384644103,-511.07673228,0.00014848,2]
[342044764,1731384644112,-500.0,0.00014848,2]
[342044765,1731384644122,-500.0,0.00014848,2]
[342044766,1731384644131,-500.0,0.00014848,2]
[342044767,1731384644141,-791.1,0.00014848,2]
[342044768,1731384644151,-500.0,0.00014848,2]
[342044769,1731384644160,-2000.0,0.00014848,2]
[342044770,1731384644169,-500.0,0.00014848,2]
[342044771,1731384644178,-500.0,0.00014848,2]
[342044772,1731384644187,-500.0,0.00014848,2]
[342044773,1731384644196,-500.0,0.00014848,2]
[342044774,1731384644205,-500.0,0.00014848,2]
[342044775,1731384644215,-500.0,0.00014848,2]
[342044776,1731384644230,-500.0,0.00014848,2]
[342044777,1731384644238,-500.0,0.00014848,2]
[342044778,1731384644247,-500.0,0.00014848,2]
[342044779,1731384644256,-500.0,0.00014848,2]
[342044780,1731384644265,-500.0,0.00014848,2]
[342044781,1731384644274,-591.27831421,0.00014848,2]
[342044782,1731384644284,-500.0,0.00014848,2]
[342044783,1731384644293,-500.0,0.00014848,2]
[342044784,1731384644302,-500.0,0.00014848,2]
[342044785,1731384644312,-500.0,0.00014848,2]
[342044786,1731384644322,-500.0,0.00014848,2]
[342044787,1731384644331,-500.0,0.00014848,2]
[342044788,1731384644341,-150.0,0.00014849,2]
[342044789,1731384644351,-150.0,0.00014859,2]
[342044790,1731384644360,-150.0,0.00014868,2]
[342044791,1731384644369,-500.0,0.00014873,2]
[342044792,1731384644378,-500.0,0.00014873,2]
[342044793,1731384644387,-89863.10224171,0.00014874,2]
[342044794,1731384644397,-333.35719762,0.00014876,2]
[342044795,1731384644406,-500.0,0.00014876,2]
[342044796,1731384644415,-500.0,0.00014876,2]
[342044797,1731384644424,-500.0,0.00014876,2]
[342044798,1731384644434,-500.0,0.00014876,2]
[342044799,1731384644443,-500.0,0.00014876,2]
[342044800,1731384644452,-955.96,0.00014876,2]
[342044801,1731384644462,-2203.44,0.00014876,2]
[342044802,1731384644473,-500.0,0.00014876,2]
[342044803,1731384644482,-950.45,0.00014876,2]
[342044804,1731384644491,-620.68425179,0.00014876,2]
[342044805,1731384644501,-1903.02,0.00014876,2]
[342044806,1731384644511,-658.49,0.00014876,2]
[342044807,1731384644520,-1410.99,0.00014876,2]
[342044808,1731384644530,-1017.69,0.00014876,2]
[342044809,1731384644540,-500.0,0.00014876,2]
[342044810,1731384644549,-500.0,0.00014876,2]
[342044811,1731384644559,-500.0,0.00014876,2]
[342044812,1731384644568,-5001.52,0.00014876,2]
[342044813,1731384644577,-2302.68,0.00014876,2]
[342044814,1731384644587,-4560.38,0.00014876,2]
[342044815,1731384644596,-500.0,0.00014876,2]
[342044816,1731384644605,-943.82,0.00014876,2]
[342044817,1731384644615,-500.0,0.00014876,2]
[342044818,1731384644624,-500.0,0.00014876,2]
[342044819,1731384644633,-500.0,0.00014876,2]
[342044820,1731384644643,-500.0,0.00014876,2]
[342044821,1731384644654,-564.17570249,0.00014876,2]
[342044822,1731384644666,-3225.75,0.00014876,2]
[342044823,1731384644675,-1786.88,0.00014876,2]
[342044824,1731384644685,-3225.75,0.00014876,2]
[342044825,1731384644694,-3225.75,0.00014876,2]
[342044826,1731384644703,-1968.22,0.00014876,2]
[342044827,1731384644712,-1968.22,0.00014876,2]
[342044828,1731384644723,-1968.22,0.00014876,2]
[342044829,1731384644733,-498.72725981,0.00014876,2]
[342044830,1731384644742,-500.0,0.00014876,2]
[342044831,1731384644754,-500.0,0.00014876,2]
[342044832,1731384644764,-500.0,0.00014876,2]
[342044833,1731384644773,-500.0,0.00014876,2]
[342044834,1731384644782,-784.55,0.00014876,2]
[342044835,1731384644792,-784.55,0.00014876,2]
[342044836,1731384644802,-784.55,0.00014876,2]
[342044837,1731384644811,-500.0,0.00014876,2]
[342044838,1731384644821,-500.0,0.00014876,2]
[342044839,1731384644830,-500.0,0.00014876,2]
[342044840,1731384644840,-500.0,0.00014876,2]
[342044841,1731384644849,-159643.09771642,0.00014876,2]
[342044846,1731384646249,-376.04862026,0.00014876,2]
[342044847,1731384646261,-268.5,0.00014876,2]
[342044848,1731384646273,-184.40137974,0.00014876,2]
[342044849,1731384646282,-828.95,0.00014876,2]
[342044850,1731384646291,-828.95,0.00014876,2]
[342044851,1731384646301,-160.189432,0.00014876,2]
[342044852,1731384646311,-1321.41188399,0.00014876,2]
[342044853,1731384646322,-3934.35823649,0.00014876,2]
[342044854,1731384646342,-603.79890277,0.00014876,2]
[342044855,1731384646354,-715.12739497,0.00014876,2]
[342044856,1731384646367,-6672.00000003,0.00014876,2]
[342044857,1731384646391,-11450.88446464,0.00014876,2]
[342044858,1731384646403,-58993.71564078,0.00014876,2]
[342044859,1731384646523,-2492.7444891,0.00014876,2]
[342044860,1731384646682,-150.0,0.00014862,2]
[342044861,1731384646692,-17473.4,0.00014876,2]
[342044862,1731384731438,152.0,0.00020094,32]
[342044863,1731384731759,152.0,0.00019956,31]
[342044864,1731384732090,152.0,0.00019818,30]
[342044865,1731385058165,697.43,0.00011887,2]
[342044868,1731385389640,720.0,0.000125,2]
[342044870,1731385537178,150.0,9e-05,2]
[342044871,1731385631104,-466.75790036,0.00013,2]
[342044877,1731385746114,-209.05,0.000129,2]
[342044878,1731385746139,-437.09906206,0.00012928,2]
[342044879,1731385746161,-300.0,0.00012999,2]
[342044880,1731385746181,-3977.21656203,0.00013,2]
[342044881,1731385757116,-27719.46043232,0.00013,2]
[342044882,1731385758116,-28961.15031723,0.00013,2]
[342044884,1731385797732,662.55,0.00011563,2]
[342044908,1731385831484,-300.0,0.00012999,2]
[342044909,1731385831494,-607.7373273,0.00013,2]
[342044910,1731385831721,-58891.25894816,0.00013,2]
[342044911,1731385831734,-182367.84196048,0.00013,2]
[342044920,1731385837450,-1357.22542988,0.00013,2]
[342044921,1731385837461,-1497.78118044,0.00013,2]
[342044922,1731385837472,-1417.04251441,0.00013,2]
[342044923,1731385837563,-370459.67223206,0.00013,2]
[342044924,1731385837573,-437.09906205,0.00013147,2]
[342044925,1731385837582,-437.09906205,0.00013366,2]
[342044926,1731385837591,-500.0,0.00013379,2]
[342044927,1731385837600,-500.0,0.00013379,2]
[342044928,1731385837609,-482.51644211,0.00013379,2]
[342044929,1731385837618,-500.0,0.00013379,2]
[342044930,1731385837627,-500.0,0.00013379,2]
[342044931,1731385837636,-500.0,0.00013379,2]
[342044932,1731385837645,-572367.67611259,0.0001338,2]
[342044933,1731385837656,-943.15553575,0.0001338,2]
[342044934,1731385837668,-350.02162176,0.0001338,2]
[342044935,1731385837686,-254.85887675,0.0001338,2]
[342044936,1731385837697,-1179.32628687,0.0001338,2]
[342044937,1731385837708,-2331.40179959,0.0001338,2]
[342044938,1731385837755,-56.01633501,0.0001338,2]
[342044939,1731385837766,-87800.0,0.0001338,2]
[342044940,1731385837780,-5074.94003619,0.0001338,2]
[342044941,1731385837791,-2110.19301992,0.0001338,2]
[342044942,1731385837802,-2247.96696579,0.0001338,2]
[342044943,1731385837921,-137411.95623236,0.0001338,2]
[342044946,1731385839425,-5303.75761919,0.0001338,2]
[342044947,1731385839436,-635.32139815,0.0001338,2]
[342044948,1731385839447,-754.596,0.0001338,2]
[342044949,1731385839458,-982.4000004,0.0001338,2]
[342044950,1731385839470,-1830.08499998,0.0001338,2]
[342044961,1731385842550,-2116.97443337,0.0001338,2]
[342044962,1731385842720,-352157.50600812,0.0001338,2]
[342044963,1731385842732,-44045.15061584,0.0001338,2]
[342044964,1731385842742,-250.0,0.00013491,2]
[342044965,1731385842751,-437.09906205,0.00013585,2]
[342044966,1731385842760,-4221.68,0.00013585,2]
[342044967,1731385842769,-500.0,0.00013698,2]
[342044968,1731385842780,-504.64644392,0.00013698,2]
[342044969,1731385842792,-500.0,0.00013698,2]
[342044970,1731385842801,-500.0,0.00013698,2]
[342044971,1731385842811,-500.0,0.00013698,2]
[342044972,1731385842820,-500.0,0.00013698,2]
[342044973,1731385842828,-916.13,0.00013698,2]
[342044974,1731385842837,-916.13,0.00013698,2]
[342044975,1731385842847,-500.0,0.00013698,2]
[342044976,1731385842855,-500.0,0.00013698,2]
[342044977,1731385842865,-500.0,0.00013698,2]
[342044978,1731385842874,-500.0,0.00013698,2]
[342044979,1731385842883,-500.0,0.00013698,2]
[342044980,1731385842892,-500.0,0.00013698,2]
[342044981,1731385842901,-2111.63,0.00013698,2]
[342044982,1731385842911,-2111.63,0.00013698,2]
[342044983,1731385842920,-500.0,0.00013698,2]
[342044984,1731385842929,-500.0,0.00013698,2]
[342044985,1731385842939,-500.0,0.00013698,2]
[342044986,1731385842947,-500.0,0.00013698,2]
[342044987,1731385842956,-1352.2,0.00013698,2]
[342044988,1731385842966,-1352.2,0.00013698,2]
[342044989,1731385842974,-631.06,0.00013698,2]
[342044990,1731385842983,-631.06,0.00013698,2]
[342044994,1731385843183,-500.0,0.00013698,2]
[342044995,1731385843192,-500.0,0.00013698,2]
[342044996,1731385843201,-975.28,0.00013698,2]
[342044997,1731385843210,-975.28,0.00013698,2]
[342044998,1731385843221,-500.0,0.00013698,2]
[342044999,1731385843230,-500.0,0.00013698,2]
[342045000,1731385843239,-4793.13,0.00013698,2]
[342045001,1731385843249,-4793.13,0.00013698,2]
[342045002,1731385843258,-500.0,0.00013698,2]
[342045003,1731385843267,-500.0,0.00013698,2]
[342045004,1731385843276,-2206.73,0.00013698,2]
[342045005,1731385843285,-2206.73,0.00013698,2]
[342045006,1731385843294,-4370.37,0.00013698,2]
[342045007,1731385843303,-4370.37,0.00013698,2]
[342045008,1731385843312,-500.0,0.00013698,2]
[342045009,1731385843321,-500.0,0.00013698,2]
[342045010,1731385843331,-500.0,0.00013698,2]
[342045011,1731385843340,-500.0,0.00013698,2]
[342045012,1731385843349,-500.0,0.00013698,2]
[342045013,1731385843358,-500.0,0.00013698,2]
[342045014,1731385843367,-500.0,0.00013698,2]
[342045015,1731385843377,-398.33555155,0.00013698,2]
[342045016,1731385843385,-500.0,0.00013698,2]
[342045017,1731385843394,-500.0,0.00013698,2]
[342045018,1731385843403,-500.0,0.00013698,2]
[342045019,1731385843412,-500.0,0.00013698,2]
[342045020,1731385843425,-500.0,0.00013698,2]
[342045021,1731385843435,-769.81,0.00013698,2]
[342045022,1731385843444,-500.0,0.00013698,2]
[342045023,1731385843454,-769.81,0.00013698,2]
[342045024,1731385843463,-500.0,0.00013698,2]
[342045025,1731385843472,-769.81,0.00013698,2]
[342045026,1731385843481,-505.46720714,0.00013698,2]
[342045027,1731385843490,-500.0,0.00013698,2]
[342045028,1731385843500,-769.81,0.00013698,2]
[342045029,1731385843508,-500.0,0.00013698,2]
[342045030,1731385843517,-769.81,0.00013698,2]
[342045031,1731385843527,-500.0,0.00013698,2]
[342045032,1731385843536,-769.81,0.00013698,2]
[342045033,1731385843545,-500.0,0.00013698,2]
[342045034,1731385843555,-769.81,0.00013698,2]
[342045035,1731385843564,-500.0,0.00013698,2]
[342045036,1731385843573,-500.0,0.00013698,2]
[342045037,1731385843582,-421.0090444,0.00013698,2]
[342045038,1731385843591,-500.0,0.00013698,2]
[342045039,1731385843600,-500.0,0.00013698,2]
[342045040,1731385843609,-500.0,0.00013698,2]
[342045041,1731385843618,-500.0,0.00013698,2]
[342045042,1731385843627,-500.0,0.00013698,2]
[342045043,1731385843637,-500.0,0.00013698,2]
[342045044,1731385843646,-1712.43,0.00013698,2]
[342045045,1731385843655,-500.0,0.00013698,2]
[342045046,1731385843664,-1712.43,0.00013698,2]
[342045047,1731385843676,-500.0,0.00013698,2]
[342045048,1731385843685,-500.0,0.00013698,2]
[342045049,1731385843694,-500.0,0.00013698,2]
[342045050,1731385843702,-275.94527296,0.00013698,2]
[342045051,1731385843717,-500.0,0.00013698,2]
[342045052,1731385843726,-152.64613007,0.00013698,2]
[342045053,1731385843735,-725.33,0.00013698,2]
[342045054,1731385843744,-725.33,0.00013698,2]
[342045055,1731385843753,-725.33,0.00013698,2]
[342045056,1731385843763,-725.33,0.00013698,2]
[342045057,1731385843772,-725.33,0.00013698,2]
[342045058,1731385843781,-725.33,0.00013698,2]
[342045059,1731385843790,-500.0,0.00013698,2]
[342045060,1731385843799,-725.33,0.00013698,2]
[342045061,1731385843808,-500.0,0.00013698,2]
[342045062,1731385843817,-500.0,0.00013698,2]
[342045063,1731385843825,-577.09559661,0.00013698,2]
[342045064,1731385843834,-596.93,0.00013698,2]
[342045065,1731385843844,-596.93,0.00013698,2]
[342045066,1731385843853,-596.93,0.00013698,2]
[342045067,1731385843862,-596.93,0.00013698,2]
[342045068,1731385843871,-596.93,0.00013698,2]
[342045069,1731385843880,-596.93,0.00013698,2]
[342045070,1731385843888,-596.93,0.00013698,2]
[342045071,1731385843897,-500.0,0.00013698,2]
[342045072,1731385843906,-500.0,0.00013698,2]
[342045073,1731385843915,-500.0,0.00013698,2]
[342045074,1731385843928,-500.0,0.00013698,2]
[342045075,1731385843936,-500.0,0.00013698,2]
[342045076,1731385843945,-500.0,0.00013698,2]
[342045077,1731385843955,-189.78662714,0.00013698,2]
[342045078,1731385843964,-500.0,0.00013698,2]
[342045079,1731385843973,-500.0,0.00013698,2]
[342045080,1731385843982,-500.0,0.00013698,2]
[342045081,1731385843992,-633.77449712,0.00013698,2]
[342045082,1731385844001,-500.0,0.00013698,2]
[342045083,1731385844010,-868.64,0.00013698,2]
[342045084,1731385844019,-868.64,0.00013698,2]
[342045085,1731385844027,-868.64,0.00013698,2]
[342045086,1731385844036,-868.64,0.00013698,2]
[342045087,1731385844045,-868.64,0.00013698,2]
[342045088,1731385844054,-868.64,0.00013698,2]
[342045089,1731385844063,-868.64,0.00013698,2]
[342045090,1731385844072,-2822.53,0.00013698,2]
[342045091,1731385844082,-2822.53,0.00013698,2]
[342045092,1731385844092,-2822.53,0.00013698,2]
[342045093,1731385844101,-2822.53,0.00013698,2]
[342045094,1731385844110,-2822.53,0.00013698,2]
[342045095,1731385844118,-2822.53,0.00013698,2]
[342045096,1731385844129,-2822.53,0.00013698,2]
[342045097,1731385844140,-500.0,0.00013698,2]
[342045098,1731385844149,-500.0,0.00013698,2]
[342045099,1731385844159,-250.0,0.000137,2]
[342045100,1731385844169,-150.0,0.00013785,2]
[342045101,1731385844179,-1000.0,0.00013794,2]
[342045102,1731385844188,-445.63,0.00013795,2]
[342045103,1731385844197,-250.0,0.00013798,2]
[342045104,1731385844207,-437.09906205,0.00013804,2]
[342045105,1731385844216,-212.69,0.00013808,2]
[342045106,1731385844225,-250.0,0.00013813,2]
[342045107,1731385844234,-500.0,0.00013817,2]
[342045108,1731385844244,-769.81,0.00013817,2]
[342045109,1731385844254,-500.0,0.00013817,2]
[342045110,1731385844263,-500.0,0.00013817,2]
[342045111,1731385844272,-725.33,0.00013817,2]
[342045112,1731385844282,-596.93,0.00013817,2]
[342045113,1731385844293,-500.0,0.00013817,2]
[342045114,1731385844303,-868.64,0.00013817,2]
[342045115,1731385844313,-2822.53,0.00013817,2]
[342045116,1731385844322,-23900.0,0.00013818,2]
[342045117,1731385844331,-662.55,0.00013827,2]
[342045118,1731385844341,-228.96494592,0.00013866,2]
[342045119,1731385844350,-228.96494592,0.00013877,2]
[342045120,1731385844359,-228.96494592,0.0001388,2]
[342045121,1731385844369,-228.96494592,0.00013882,2]
[342045122,1731385844378,-228.96494592,0.00013885,2]
[342045123,1731385844387,-228.96494592,0.00013894,2]
[342045124,1731385844396,-411900.87435816,0.00013978,2]
[342045125,1731385844467,-500.0,0.00013698,2]
[342045126,1731385844476,-19155.85158011,0.00013978,2]
[342045127,1731385844488,-965.21022483,0.00013978,2]
[342045130,1731385845862,-509.01832306,0.00013698,2]
[342045131,1731385845872,-393.04143064,0.00013698,2]
[342045132,1731385845882,-974.01106825,0.00013978,2]
[342045133,1731385845922,-867.77053557,0.00013978,2]
[342045134,1731385845941,-1401.35007974,0.00013978,2]
[342045135,1731385846000,-17696.9660864,0.00013978,2]
[342045136,1731385846012,-17605.4,0.00013978,2]
[342045137,1731385846063,-2341.6074867,0.00013978,2]
[342045138,1731385846079,-4574.57984,0.00013978,2]
[342045150,1731386681824,643.92,0.00010887,2]
[342045151,1731386826104,-525.38022463,0.00012789,2]
[342045153,1731386958082,-204.62,0.00012711,2]
[342045154,1731386958105,-300.0,0.00012779,2]
[342045155,1731386958127,-752.83458024,0.0001278,2]
[342045156,1731386974202,-490.0,0.0001278,2]
[342045166,1731387031589,-250.0,0.00012696,2]
[342045167,1731387031599,-8607.6,0.0001278,2]
[342045168,1731387031701,-8123.57959236,0.0001278,2]
[342045169,1731387031710,-474.61977537,0.00012789,2]
[342045170,1731387031720,-250.0,0.00012802,2]
[342045171,1731387031728,-229.82,0.00012806,2]
[342045172,1731387031737,-700.0,0.00012825,2]
[342045173,1731387031746,-19025.32867084,0.00012829,2]
[342045174,1731387031757,-887.36,0.00012829,2]
[342045175,1731387031976,-3987.31132916,0.00012829,2]
[342045176,1731387031985,-168.96,0.00012889,2]
[342045178,1731387031995,-168.96,0.00013018,2]
[342045180,1731387032004,-643.92,0.00013151,2]
[342045182,1731387032013,-166.69,0.00013273,2]
[342045184,1731387032022,-204.62,0.00013347,2]
[342045185,1731387032031,-388.81277673,0.00013498,2]
[342045186,1731387032040,-8676.0,0.00013561,2]
[342045188,1731387032049,-150.0,0.00013596,2]
[342045190,1731387032058,-2106.1673,0.00013597,2]
[342045192,1731387032067,-1635.35700576,0.00013597,2]
[342045193,1731387032085,-652.83629424,0.00013597,2]
[342045194,1731387032094,-158.05561671,0.00013598,2]
[342045195,1731387032103,-251.37253107,0.00013598,2]
[342045196,1731387032113,-1368.28861917,0.00013598,2]
[342045197,1731387032122,-2500.0,0.00013598,2]
[342045198,1731387032135,-501.73073289,0.00013673,2]
[342045199,1731387032144,-500.0,0.00013673,2]
[342045200,1731387032153,-224.67722518,0.00013673,2]
[342045201,1731387032162,-347.13859257,0.00013673,2]
[342045202,1731387032171,-1049.8101,0.00013697,2]
[342045204,1731387032180,-1000.0,0.00013697,2]
[342045206,1731387032189,-3045.85,0.00013697,2]
[342045208,1731387032198,-3045.85,0.00013697,2]
[342045210,1731387032208,-3045.85,0.00013697,2]
[342045211,1731387032217,-3045.85,0.00013697,2]
[342045213,1731387032227,-3045.85,0.00013697,2]
[342045215,1731387032236,-3045.85,0.00013697,2]
[342045216,1731387032246,-3045.85,0.00013697,2]
[342045217,1731387032255,-3045.85,0.00013697,2]
[342045218,1731387032264,-3045.85,0.00013697,2]
[342045219,1731387032274,-3045.85,0.00013697,2]
[342045220,1731387032283,-3045.85,0.00013697,2]
[342045221,1731387032293,-3045.85,0.00013697,2]
[342045222,1731387032302,-3045.85,0.00013697,2]
[342045223,1731387032311,-3045.85,0.00013697,2]
[342045224,1731387032321,-3045.85,0.00013697,2]
[342045225,1731387032330,-3045.85,0.00013697,2]
[342045226,1731387032340,-3045.85,0.00013697,2]
[342045227,1731387032349,-3045.85,0.00013697,2]
[342045228,1731387032358,-3045.85,0.00013697,2]
[342045229,1731387032367,-3045.85,0.00013697,2]
[342045230,1731387032377,-3045.85,0.00013697,2]
[342045231,1731387032389,-3045.85,0.00013697,2]
[342045232,1731387032399,-3045.85,0.00013697,2]
[342045233,1731387032409,-3046.02866043,0.00013697,2]
[342045234,1731387032418,-500.0,0.00013698,2]
[342045235,1731387032427,-500.0,0.00013698,2]
[342045236,1731387032437,-501.37167063,0.00013698,2]
[342045237,1731387032446,-500.0,0.00013698,2]
[342045238,1731387032455,-502.52316345,0.00013698,2]
[342045239,1731387032464,-532.82974915,0.00013698,2]
[342045240,1731387032473,-500.0,0.00013698,2]
[342045241,1731387032482,-500.0,0.00013698,2]
[342045242,1731387032491,-500.0,0.00013698,2]
[342045243,1731387032500,-500.0,0.00013698,2]
[342045244,1731387032509,-500.0,0.00013698,2]
[342045245,1731387032517,-500.0,0.00013698,2]
[342045246,1731387032528,-500.0,0.00013698,2]
[342045247,1731387032538,-472.02245923,0.00013698,2]
[342045248,1731387032547,-500.0,0.00013698,2]
[342045249,1731387032555,-500.0,0.00013698,2]
[342045250,1731387032564,-500.0,0.00013698,2]
[342045251,1731387032574,-500.0,0.00013698,2]
[342045252,1731387032583,-500.0,0.00013698,2]
[342045253,1731387032592,-500.0,0.00013698,2]
[342045254,1731387032601,-500.0,0.00013698,2]
[342045255,1731387032612,-500.0,0.00013698,2]
[342045256,1731387032622,-500.0,0.00013698,2]
[342045257,1731387032634,-500.0,0.00013698,2]
[342045258,1731387032643,-547.29274082,0.00013698,2]
[342045259,1731387032652,-500.0,0.00013698,2]
[342045260,1731387032661,-500.0,0.00013698,2]
[342045261,1731387032670,-511.4785998,0.00013698,2]
[342045262,1731387032679,-505.535613,0.00013698,2]
[342045263,1731387032688,-338.93103329,0.00013698,2]
[342045264,1731387032710,-161.84778704,0.00013698,2]
[342045265,1731387032719,-500.0,0.00013698,2]
[342045266,1731387032728,-500.0,0.00013698,2]
[342045267,1731387032737,-500.0,0.00013698,2]